fUSD/lending_fUSD_20250628
["ID","MTS","AMOUNT","RATE_DAILY","PERIOD"]
[368359622,1751142632930,-500.0,0.00028882,2]
[368359624,1751142632940,-500.0,0.00028882,2]
[368359626,1751142632949,-668.65185757,0.00028882,2]
[368359628,1751142632958,-4754.16710536,0.00028899,2]
[368359630,1751142632968,-36198.9323,0.000289,2]
[368359632,1751142632977,-503.24393802,0.00029,10]
[368359634,1751142632987,-1597.74,0.00029178,2]
[368359635,1751142632997,-924.8,0.00029178,2]
[368359637,1751142633006,-2500.0,0.00029232,2]
[368359639,1751142633016,-4218.69355,0.0002928,2]
[368359641,1751142633026,-166.66,0.0002936,2]
[368359643,1751142633035,-2269.17910362,0.0002939,2]
[368360098,1751142637780,-179.67,0.00027076,2]
[368360099,1751142637791,-230.82089638,0.0002939,2]
[368360100,1751142637800,-414.44396313,0.0002939,2]
[368360101,1751142637827,-6362.55613687,0.0002939,2]
[368360102,1751142637836,-2500.0,0.0002939,2]
[368360103,1751142637846,-215.61284194,0.00029393,2]
[368360104,1751142637858,-1180.4632342,0.00029393,2]
[368360105,1751142637868,-308.3815,0.000294,2]
[368360106,1751142637878,-222.29855514,0.000294,15]
[368360107,1751142637887,-256.26671068,0.0002948,2]
[368360108,1751142637899,-1620.877762,0.0002948,2]
[368360109,1751142637910,-2290.16,0.0002948,2]
[368360110,1751142637921,-476.03,0.0002948,2]
[368360111,1751142637933,-1662.4,0.0002948,2]
[368360112,1751142637964,-9386.38281719,0.0002948,2]
[368360113,1751142637975,-1550.16,0.0002948,2]
[368360114,1751142638802,-329.57065065,0.0002948,2]
[368360115,1751142638814,-8603.89573437,0.0002948,2]
[368360116,1751142638839,-1545.00827831,0.0002948,2]
[368360117,1751142638848,-9240.25065107,0.0002949,2]
[368360118,1751142638857,-1000.0,0.0002949,2]
[368360120,1751142638866,-27282.39497454,0.0002949,2]
[368360124,1751142638892,-2166.37608666,0.0002949,2]
[368360126,1751142638904,-294.75802627,0.0002949,2]
[368360138,1751142639010,-438.68650398,0.0002949,2]
[368360140,1751142639023,-437.92699236,0.0002949,2]
[368360143,1751142639034,-424.67986422,0.0002949,2]
[368360150,1751142639093,-157323.85875197,0.0002949,2]
[368360152,1751142639102,-500.0,0.000295,2]
[368360154,1751142639111,-500.0,0.000295,2]
[368360155,1751142639120,-500.0,0.000295,2]
[368360157,1751142639129,-500.0,0.000295,2]
[368360159,1751142639139,-625.0,0.000295,2]
[368360161,1751142639148,-150.0,0.000295,2]
[368360163,1751142639158,-500.0,0.000295,2]
[368360165,1751142639167,-150.0,0.000295,2]
[368360168,1751142639176,-150.0,0.000295,2]
[368360170,1751142639185,-150.0,0.000295,2]
[368360171,1751142639194,-150.0,0.000295,2]
[368360174,1751142639204,-150.0,0.000295,2]
[368360176,1751142639213,-500.0,0.000295,2]
[368360178,1751142639222,-150.0,0.000295,2]
[368360179,1751142639232,-500.0,0.000295,2]
[368360181,1751142639241,-500.0,0.000295,2]
[368360183,1751142639250,-150.68712096,0.000295,2]
[368360186,1751142639260,-150.0,0.000295,2]
[368360188,1751142639270,-150.0,0.000295,2]
[368360190,1751142639279,-500.0,0.000295,2]
[368360192,1751142639289,-150.0,0.000295,2]
[368360194,1751142639298,-500.0,0.000295,2]
[368360196,1751142639308,-500.0,0.000295,2]
[368360198,1751142639317,-150.0,0.000295,2]
[368360200,1751142639326,-150.0,0.000295,2]
[368360202,1751142639336,-500.0,0.000295,2]
[368360204,1751142639345,-150.0,0.000295,2]
[368360206,1751142639354,-1396.07607609,0.00029525,2]
[368360208,1751142639364,-200.0,0.00029535,2]
[368360210,1751142639373,-687.0,0.00029572,2]
[368360212,1751142639382,-500.0,0.00029572,2]
[368360214,1751142639391,-500.0,0.00029572,2]
[368360216,1751142639401,-500.0,0.00029572,2]
[368360218,1751142639410,-500.0,0.00029572,2]
[368360220,1751142639419,-150.0,0.00029572,2]
[368360222,1751142639428,-500.0,0.00029572,2]
[368360224,1751142639437,-523.0,0.00029572,2]
[368360226,1751142639447,-500.0,0.00029572,2]
[368360228,1751142639455,-223.4708251,0.00029572,2]
[368360230,1751142639465,-150.0,0.00029572,2]
[368360231,1751142639474,-500.0,0.00029572,2]
[368360233,1751142639483,-500.0,0.00029572,2]
[368360235,1751142639494,-150.0,0.00029572,2]
[368360237,1751142639504,-150.0,0.00029572,2]
[368360239,1751142639513,-701.0,0.00029579,2]
[368360241,1751142639522,-9240.25065107,0.0002959,2]
[368360243,1751142639531,-241.75846514,0.000296,21]
[368360245,1751142639541,-241.75846501,0.000296,21]
[368360247,1751142639550,-241.75846501,0.000296,21]
[368360249,1751142639559,-241.75846501,0.000296,21]
[368360251,1751142639568,-241.75846501,0.000296,21]
[368360253,1751142639577,-241.75846501,0.000296,21]
[368360255,1751142639586,-241.75846501,0.000296,21]
[368360257,1751142639595,-241.75846501,0.000296,21]
[368360259,1751142639604,-241.75846501,0.000296,21]
[368360261,1751142639613,-241.75846501,0.000296,21]
[368360263,1751142639623,-150.0,0.00029642,2]
[368360265,1751142639636,-150.0,0.00029642,2]
[368360267,1751142639645,-150.0,0.00029644,2]
[368360269,1751142639655,-150.0,0.00029647,2]
[368360271,1751142639664,-222.29855508,0.00029653,15]
[368360273,1751142639674,-5000.0,0.00029655,2]
[368360275,1751142639683,-150.0,0.00029656,2]
[368360277,1751142639692,-1396.07607609,0.00029658,2]
[368360279,1751142639702,-9240.25065107,0.0002966,2]
[368360281,1751142639711,-4686.8023711,0.0002967,2]
[368360283,1751142639721,-150.0,0.00029671,2]
[368360285,1751142639730,-150.0,0.00029672,2]
[368360287,1751142639740,-183.88985406,0.00029674,2]
[368360289,1751142639752,-206.79472465,0.00029674,2]
[368360291,1751142639764,-215.0738,0.00029676,2]
[368360293,1751142639773,-150.0,0.00029676,2]
[368360295,1751142639783,-500.0,0.00029681,2]
[368360298,1751142639792,-500.0,0.00029681,2]
[368360300,1751142639802,-269.66511035,0.00029681,2]
[368360302,1751142639811,-500.0,0.00029681,2]
[368360303,1751142639820,-500.0,0.00029681,2]
[368360304,1751142639830,-500.0,0.00029681,2]
[368360305,1751142639840,-444.97825328,0.00029681,2]
[368360306,1751142639849,-500.0,0.00029681,2]
[368360307,1751142639858,-500.0,0.00029681,2]
[368360308,1751142639867,-500.0,0.00029681,2]
[368360309,1751142639877,-500.0,0.00029681,2]
[368360310,1751142639886,-500.0,0.00029681,2]
[368360311,1751142639896,-500.0,0.00029681,2]
[368360312,1751142639905,-500.0,0.00029681,2]
[368360313,1751142639915,-500.0,0.00029681,2]
[368360314,1751142639925,-500.0,0.00029681,2]
[368360315,1751142639934,-324.28564925,0.00029681,2]
[368360316,1751142639944,-500.0,0.00029681,2]
[368360318,1751142639953,-271.01012076,0.00029681,2]
[368360319,1751142639963,-1065.9957167,0.00029681,15]
[368360321,1751142639972,-150.0,0.00029681,2]
[368360323,1751142639981,-10291380.47217999,0.00029682,7]
[368360325,1751142639994,-33984.04888014,0.00029682,7]
[368360327,1751142640005,-6135.28475063,0.00029682,7]
[368360330,1751142640016,-3852.49999945,0.00029682,7]
[368360443,1751142641093,-600.0,0.00029682,7]
[368360447,1751142641115,-9169.81847655,0.00029682,7]
[368360449,1751142641126,-57291.8892806,0.00029682,7]
[368360451,1751142641138,-6223.95118902,0.00029682,7]
[368360453,1751142641149,-500.0,0.00029682,7]
[368360456,1751142641161,-577.46205938,0.00029682,7]
[368360458,1751142641173,-406.95691,0.00029682,7]
[368360466,1751142641241,-105349.88447318,0.00029682,7]
[368360469,1751142641253,-3908.00601666,0.00029682,7]
[368360471,1751142641264,-494.99999995,0.00029682,7]
[368360539,1751142641897,-151.0,0.00021851,2]
[368360541,1751142641907,-365.42794248,0.00029682,7]
[368360543,1751142641919,-3747.26080105,0.00029682,7]
[368360546,1751142641931,-1034.355,0.00029682,7]
[368360548,1751142641942,-654.839996,0.00029682,7]
[368360557,1751142642020,-20709.53101357,0.00029682,7]
[368360559,1751142642032,-54246.60507055,0.00029682,7]
[368360561,1751142642043,-1197.49999999,0.00029682,7]
[368360563,1751142642055,-200131.26314823,0.00029682,7]
[368360566,1751142642070,-930.89072453,0.00029682,7]
[368360568,1751142642081,-107771.241825,0.00029682,7]
[368360575,1751142642137,-797.65064197,0.00029682,7]
[368360577,1751142642149,-1079.36056577,0.00029682,7]
[368360579,1751142642162,-867.89771197,0.00029682,7]
[368360580,1751142642172,-1842.44768907,0.00029682,7]
[368360581,1751142642183,-1522.49999988,0.00029682,7]
[368360582,1751142642194,-597.37386449,0.00029682,7]
[368360583,1751142642206,-460.0,0.00029682,7]
[368360584,1751142642217,-795.78018385,0.00029682,7]
[368360585,1751142642240,-421.48223619,0.00029682,7]
[368360586,1751142642253,-3973.6988002,0.00029682,7]
[368360671,1751142643025,-564.91500818,0.00029682,7]
[368360673,1751142643036,-306.2985573,0.00029682,7]
[368360676,1751142643048,-2523.02193112,0.00029682,7]
[368360678,1751142643059,-2903.04000028,0.00029682,7]
[368360680,1751142643074,-450.0,0.00029682,7]
[368360682,1751142643085,-1664.1,0.00029682,7]
[368360686,1751142643106,-202661.91295199,0.00029682,7]
[368360688,1751142643118,-4908.2,0.00029682,7]
[368360690,1751142643129,-889.77323113,0.00029682,7]
[368360692,1751142643141,-485.305,0.00029682,7]
[368360694,1751142643152,-659.55599547,0.00029682,7]
[368360697,1751142643164,-38015.26053665,0.00029682,7]
[368360699,1751142643176,-672.10671326,0.00029682,7]
[368360701,1751142643187,-661.1367839,0.00029682,7]
[368360703,1751142643198,-352.72799642,0.00029682,7]
[368360705,1751142643210,-10410.75234343,0.00029682,7]
[368360708,1751142643221,-3230.19084801,0.00029682,7]
[368360710,1751142643235,-8051.07582397,0.00029682,7]
[368360712,1751142643246,-870.44412021,0.00029682,7]
[368360715,1751142643258,-534.3999998,0.00029682,7]
[368360717,1751142643269,-2238.41519368,0.00029682,7]
[368360719,1751142643282,-262.35466837,0.00029682,7]
[368360731,1751142643376,-13005.03628706,0.00029682,7]
[368360734,1751142643389,-5358.73298,0.00029682,7]
[368360736,1751142643400,-10418.26025048,0.00029682,7]
[368360739,1751142643411,-137683.20065691,0.00029682,7]
[368360742,1751142643430,-344.025,0.00029682,7]
[368360969,1751142645799,-500.0,0.00029681,2]
[368360970,1751142645809,-183.60946268,0.00029681,2]
[368360971,1751142645819,-500.0,0.00029681,2]
[368360972,1751142645828,-422.13397042,0.00029681,2]
[368360974,1751142645838,-500.0,0.00029681,2]
[368360975,1751142645847,-341.38741796,0.00029681,2]
[368360976,1751142645856,-1002.56584392,0.00029682,7]
[368360977,1751142645867,-308.77836,0.00029682,7]
[368360979,1751142645945,-2856.24168655,0.00029682,7]
[368360980,1751142645957,-1230.17917,0.00029682,7]
[368360981,1751142645969,-9804.12552045,0.00029682,7]
[368360982,1751142645980,-24592.1895128,0.00029682,7]
[368360985,1751142646013,-829.88285477,0.00029682,7]
[368360988,1751142646024,-16209.91327263,0.00029682,7]
[368360990,1751142646036,-185202.95116839,0.00029682,7]
[368360992,1751142646048,-2955.51346203,0.00029682,7]
[368360994,1751142646059,-592.64483477,0.00029682,7]
[368360997,1751142646079,-738.56,0.00029682,7]
[368361001,1751142646115,-10381.6590002,0.00029682,7]
[368361004,1751142646126,-546.0,0.00029682,7]
[368361006,1751142646138,-443.94521925,0.00029682,7]
[368361008,1751142646150,-1823.14588749,0.00029682,7]
[368361010,1751142646162,-1001.43789658,0.00029682,7]
[368361040,1751142646535,-5309.93036833,0.00029682,7]
[368361042,1751142646546,-20286.64998232,0.00029682,7]
[368361044,1751142646558,-92431.8027399,0.00029682,7]
[368361047,1751142646568,-92009.85018868,0.00029682,7]
[368361051,1751142646601,-547.83393183,0.00029682,7]
[368361053,1751142646612,-936.58782271,0.00029682,7]
[368361056,1751142646623,-1023.41217729,0.00029682,7]
[368361410,1751142787548,-1500.0,0.00022338,2]
[368361411,1751142799459,-1075.1363935,0.00023153,2]
[368361412,1751142803122,156.66,0.00013699,2]
[368361414,1751142840906,-151.0,0.00023712,2]
[368361415,1751142840934,-151.0,0.00023761,2]
[368361416,1751142840961,-151.0,0.00023798,2]
[368361417,1751142840989,-151.0,0.00023825,2]
[368361418,1751142841017,-1396.0,0.00024429,2]
[368361419,1751142886087,-151.0,0.00023878,2]
[368361420,1751142886115,-149.0,0.00023895,2]
[368361421,1751142926676,-151.0,0.00023816,2]
[368361422,1751142926703,-149.0,0.00023892,2]
[368361423,1751143323040,-151.0,0.00022147,2]
[368361424,1751143323091,-151.0,0.00022153,2]
[368361425,1751143323157,-151.0,0.00022161,2]
[368361426,1751143323223,-151.0,0.00022162,2]
[368361427,1751143333608,151.0,0.00022185,2]
[368361428,1751143503891,-151.0,0.00021453,2]
[368361429,1751143522791,-52.0,0.00021453,2]
[368361430,1751143522820,-99.0,0.00022058,2]
[368361431,1751143526948,-151.0,0.00022032,2]
[368361432,1751143529733,-52.0,0.00022058,2]
[368361433,1751143529760,-99.0,0.00022087,2]
[368361434,1751143532182,-52.0,0.00022087,2]
[368361435,1751143532211,-99.0,0.0002215,2]
[368361436,1751143534007,-52.0,0.0002215,2]
[368361437,1751143545039,99.0,0.00022033,2]
[368361438,1751143545066,52.0,0.00022033,2]
[368361443,1751143817663,156.94,0.00013699,2]
[368361446,1751143832061,-151.0,0.0002186,2]
[368361447,1751143832070,-151.0,0.00021871,2]
[368361448,1751143832080,-151.0,0.00021884,2]
[368361449,1751143832092,-151.0,0.00021892,2]
[368361450,1751143832103,-203.0,0.00023377,2]
[368361451,1751143832113,-151.0,0.00024429,2]
[368361452,1751143832122,-183.88985406,0.00024429,2]
[368361453,1751143832133,-104.0,0.00024429,2]
[368361454,1751143832143,-173.11,0.0002551,2]
[368361455,1751143832153,-316.0,0.00025616,2]
[368361456,1751143832162,-16.02124131,0.00026027,2]
[368361457,1751143832176,-140.91875869,0.00026027,2]
[368361458,1751143832187,-183.31556321,0.00026083,2]
[368361459,1751143832202,-1316.68443679,0.00026083,2]
[368361460,1751143832212,-203.0,0.0002704,7]
[368361461,1751143832222,-150.0,0.00027124,2]
[368361462,1751143832231,-1591.365619,0.0002726,2]
[368361463,1751143832241,-169.86,0.0002744,120]
[368361464,1751143832251,-152.92,0.00027561,2]
[368361465,1751143832261,-152.92,0.00027568,2]
[368361466,1751143832271,-125.12626051,0.00027576,2]
[368361467,1751143832282,-27.79373949,0.00027576,2]
[368361468,1751143832292,-152.92,0.00027583,2]
[368361469,1751143832301,-666.0,0.00027589,2]
[368361470,1751143832310,-152.92,0.0002759,2]
[368361471,1751143832320,-152.92,0.00027597,2]
[368361472,1751143832330,-152.92,0.00027605,2]
[368361473,1751143832339,-152.92,0.00027612,2]
[368361474,1751143832348,-152.92,0.00027619,2]
[368361475,1751143832358,-1200.0,0.00027625,2]
[368361476,1751143832368,-850.0,0.00027626,2]
[368361477,1751143832377,-300.0,0.00027626,2]
[368361479,1751143832386,-152.92,0.00027626,2]
[368361481,1751143832395,-152.92,0.00027634,2]
[368361483,1751143832405,-152.92,0.00027641,2]
[368361485,1751143832414,-152.92,0.00027648,2]
[368361487,1751143832423,-184.58,0.00027651,2]
[368361489,1751143832433,-152.92,0.00027656,2]
[368361491,1751143832442,-152.92,0.00027663,2]
[368361493,1751143832452,-152.92,0.0002767,2]
[368361495,1751143832462,-152.92,0.00027677,2]
[368361498,1751143832471,-152.92,0.00027685,2]
[368361499,1751143832481,-152.92,0.00027692,2]
[368361502,1751143832490,-40.72096384,0.00027699,2]
[368361507,1751143832533,-112.19903616,0.00027699,2]
[368361509,1751143832543,-250.0,0.00027926,2]
[368361512,1751143832552,-185.72,0.00028014,2]
[368361515,1751143832561,-237.0,0.00028055,2]
[368361517,1751143832570,-1079.48,0.00028099,2]
[368361520,1751143832580,-237.0,0.0002816,2]
[368361523,1751143832589,-300.0,0.00028306,2]
[368361526,1751143832599,-1957.856,0.00028307,2]
[368361528,1751143832609,-207.4,0.00028307,2]
[368361531,1751143832618,-323.0,0.0002837,7]
[368361534,1751143832627,-1000.0,0.00028752,2]
[368361537,1751143832636,-334.501113,0.0002879,8]
[368361538,1751143832645,-9180.97497817,0.0002899,2]
[368361541,1751143832655,-17985.0,0.000291,2]
[368361544,1751143832664,-835.41973025,0.00029144,2]
[368361546,1751143832673,-1597.74,0.00029181,2]
[368361548,1751143832683,-300.0,0.00029205,2]
[368361550,1751143832692,-500.0,0.00029205,2]
[368361552,1751143832701,-500.0,0.00029205,2]
[368361554,1751143832710,-500.0,0.00029205,2]
[368361557,1751143832720,-500.0,0.00029205,2]
[368361560,1751143832729,-151.0,0.00029205,2]
[368361563,1751143832741,-500.0,0.00029205,2]
[368361566,1751143832750,-500.0,0.00029205,2]
[368361569,1751143832759,-500.0,0.00029205,2]
[368361572,1751143832769,-500.0,0.00029205,2]
[368361575,1751143832778,-500.0,0.00029205,2]
[368361578,1751143832787,-500.0,0.00029205,2]
[368361581,1751143832797,-500.0,0.00029205,2]
[368361584,1751143832807,-500.0,0.00029205,2]
[368361587,1751143832815,-500.0,0.00029205,2]
[368361590,1751143832825,-500.0,0.00029205,2]
[368361593,1751143832836,-500.0,0.00029205,2]
[368361596,1751143832845,-3230.29333721,0.00029223,2]
[368361599,1751143832857,-26769.70666279,0.00029223,2]
[368361602,1751143832866,-2500.0,0.0002929,2]
[368361605,1751143832875,-217.4080631,0.00029295,2]
[368361608,1751143832885,-1896.69176944,0.00029363,2]
[368361611,1751143832894,-166.08015784,0.00029363,2]
[368361612,1751143832904,-3515.57796,0.0002938,2]
[368361613,1751143832913,-500.0,0.0002939,2]
[368361614,1751143832922,-36198.9323,0.0002939,2]
[368361615,1751143832932,-560.69626943,0.0002939,2]
[368361616,1751143832947,-82982.30087,0.0002939,2]
[368361617,1751143832963,-2058.0018855,0.0002939,2]
[368362128,1751143838134,-151.0,0.00021953,2]
[368362130,1751143838144,-607.96506545,0.00027048,2]
[368362132,1751143838155,-2515.02493455,0.00027048,2]
[368362134,1751143838165,-4033.51905662,0.00029223,2]
[368362138,1751143838189,-10291.37323522,0.00029223,2]
[368362140,1751143838199,-210.89076813,0.0002939,2]
[368362142,1751143838208,-102767.68217507,0.0002939,2]
[368362143,1751143838217,-150.0,0.00029463,2]
[368362145,1751143838227,-1896.69176942,0.00029468,2]
[368362147,1751143838236,-7770.34568165,0.00029472,2]
[368362149,1751143838246,-150.0,0.00029486,2]
[368362151,1751143838255,-9694.85263028,0.0002949,2]
[368362153,1751143838264,-150.0,0.00029492,2]
[368362155,1751143838273,-150.0,0.00029494,2]
[368362157,1751143838283,-150.0,0.00029496,2]
[368362159,1751143838292,-150.0,0.00029498,2]
[368362161,1751143838301,-241.75846514,0.000295,21]
[368362163,1751143838310,-241.75846501,0.000295,21]
[368362165,1751143838319,-241.75846501,0.000295,21]
[368362167,1751143838328,-241.75846501,0.000295,21]
[368362169,1751143838337,-241.75846501,0.000295,21]
[368362171,1751143838347,-241.75846501,0.000295,21]
[368362173,1751143838355,-5508.0,0.000295,3]
[368362175,1751143838364,-150.0,0.00029505,2]
[368362177,1751143838373,-150.0,0.0002951,2]
[368362179,1751143838382,-150.0,0.00029517,2]
[368362180,1751143838391,-150.0,0.00029517,2]
[368362182,1751143838401,-150.0,0.00029519,2]
[368362185,1751143838410,-150.0,0.0002952,2]
[368362187,1751143838419,-1000.0,0.00029526,2]
[368362189,1751143838428,-150.0,0.00029527,2]
[368362190,1751143838437,-150.0,0.00029528,2]
[368362191,1751143838446,-150.0,0.00029529,2]
[368362192,1751143838455,-150.0,0.00029529,2]
[368362194,1751143838465,-150.0,0.0002953,2]
[368362196,1751143838474,-150.0,0.00029537,2]
[368362197,1751143838483,-150.0,0.00029537,2]
[368362199,1751143838492,-1000.0,0.00029537,2]
[368362201,1751143838501,-150.0,0.0002954,2]
[368362203,1751143838510,-241.75846501,0.00029555,21]
[368362205,1751143838520,-150.0,0.00029558,2]
[368362207,1751143838529,-150.0,0.00029559,2]
[368362208,1751143838538,-150.0,0.00029562,2]
[368362210,1751143838547,-150.0,0.00029562,2]
[368362212,1751143838556,-150.0,0.00029562,2]
[368362214,1751143838565,-9694.85263028,0.00029562,2]
[368362216,1751143838575,-150.0,0.00029563,2]
[368362218,1751143838584,-200.06869959,0.00029564,15]
[368362220,1751143838594,-150.0,0.00029564,2]
[368362222,1751143838603,-7770.34568162,0.00029565,2]
[368362224,1751143838612,-150.0,0.00029567,2]
[368362226,1751143838621,-150.0,0.00029568,2]
[368362228,1751143838630,-500.0,0.00029572,2]
[368362230,1751143838640,-150.0,0.00029572,2]
[368362232,1751143838649,-500.0,0.00029572,2]
[368362234,1751143838658,-150.0,0.00029572,2]
[368362236,1751143838667,-150.0,0.00029572,2]
[368362238,1751143838676,-500.0,0.00029572,2]
[368362240,1751143838686,-150.0,0.00029572,2]
[368362242,1751143838695,-150.0,0.00029572,2]
[368362244,1751143838704,-150.0,0.00029572,2]
[368362246,1751143838713,-150.0,0.00029572,2]
[368362248,1751143838722,-150.0,0.00029572,2]
[368362250,1751143838732,-768.099,0.00029572,23]
[368362252,1751143838741,-500.0,0.00029572,2]
[368362254,1751143838751,-150.0,0.00029572,2]
[368362256,1751143838761,-500.0,0.00029572,2]
[368362258,1751143838770,-150.0,0.00029572,2]
[368362260,1751143838780,-500.0,0.00029572,2]
[368362262,1751143838789,-500.0,0.00029572,2]
[368362264,1751143838799,-500.0,0.00029572,2]
[368362266,1751143838809,-150.0,0.00029572,2]
[368362267,1751143838818,-500.0,0.00029572,2]
[368362269,1751143838827,-625.0,0.00029572,2]
[368362271,1751143838836,-500.0,0.00029572,2]
[368362273,1751143838845,-500.0,0.00029572,2]
[368362275,1751143838854,-150.0,0.00029572,2]
[368362277,1751143838863,-150.0,0.00029572,2]
[368362279,1751143838873,-150.0,0.00029572,2]
[368362281,1751143838882,-150.0,0.00029572,2]
[368362283,1751143838891,-1000.0,0.00029573,2]
[368362285,1751143838901,-500.0,0.00029573,2]
[368362287,1751143838910,-659.0,0.00029573,2]
[368362289,1751143838919,-500.0,0.00029573,2]
[368362291,1751143838928,-500.0,0.00029573,2]
[368362293,1751143838938,-500.0,0.00029573,2]
[368362295,1751143838947,-150.0,0.00029573,2]
[368362297,1751143838957,-500.0,0.00029573,2]
[368362300,1751143838970,-150.0,0.00029573,2]
[368362301,1751143838981,-500.0,0.00029573,2]
[368362304,1751143838994,-546.0,0.00029573,2]
[368362305,1751143839005,-500.0,0.00029573,2]
[368362308,1751143839015,-223.4708251,0.00029573,2]
[368362309,1751143839025,-150.0,0.00029573,2]
[368362311,1751143839034,-500.0,0.00029573,2]
[368362313,1751143839044,-500.0,0.00029573,2]
[368362315,1751143839053,-500.0,0.00029573,2]
[368362317,1751143839062,-150.0,0.00029573,2]
[368362319,1751143839072,-150.0,0.00029573,2]
[368362321,1751143839081,-1896.69176942,0.00029573,2]
[368362323,1751143839092,-5000.0,0.00029574,2]
[368362325,1751143839102,-9694.85263028,0.00029581,2]
[368362327,1751143839112,-150.0,0.00029581,2]
[368362329,1751143839121,-155.66438767,0.00029581,2]
[368362331,1751143839130,-150.0,0.00029583,2]
[368362333,1751143839139,-150.0,0.00029585,2]
[368362335,1751143839149,-150.0,0.00029589,2]
[368362337,1751143839158,-1000.0,0.00029591,2]
[368362339,1751143839167,-150.0,0.00029593,2]
[368362341,1751143839177,-294.1384533,0.00029594,2]
[368362342,1751143839186,-150.0,0.000296,2]
[368362344,1751143839195,-150.0,0.00029607,2]
[368362347,1751143839205,-150.0,0.0002961,2]
[368362348,1751143839214,-150.0,0.00029611,2]
[368362350,1751143839223,-150.0,0.00029611,2]
[368362352,1751143839232,-150.0,0.00029612,2]
[368362354,1751143839241,-254.21111897,0.00029612,2]
[368362355,1751143839250,-150.0,0.00029613,2]
[368362357,1751143839260,-1000.0,0.00029615,2]
[368362358,1751143839269,-1000.0,0.00029619,2]
[368362359,1751143839278,-150.0,0.00029619,2]
[368362360,1751143839287,-150.0,0.0002962,2]
[368362361,1751143839296,-150.0,0.00029623,2]
[368362362,1751143839305,-150.0,0.00029627,2]
[368362363,1751143839314,-150.0,0.00029628,2]
[368362364,1751143839323,-150.0,0.0002963,2]
[368362365,1751143839332,-150.0,0.0002963,2]
[368362366,1751143839341,-237.0,0.00029632,2]
[368362367,1751143839350,-150.0,0.00029632,2]
[368362368,1751143839359,-150.0,0.00029632,2]
[368362369,1751143839368,-150.0,0.00029632,2]
[368362370,1751143839377,-150.0,0.00029634,2]
[368362371,1751143839386,-150.0,0.00029636,2]
[368362372,1751143839395,-150.0,0.00029639,2]
[368362373,1751143839404,-150.0,0.00029641,2]
[368362374,1751143839412,-150.0,0.00029641,2]
[368362375,1751143839422,-150.0,0.00029643,2]
[368362376,1751143839431,-254.21111897,0.00029643,2]
[368362377,1751143839439,-8499600.60740555,0.00029643,7]
[368362378,1751143840219,-150.0,0.00029484,2]
[368362379,1751143840229,-150.0,0.00029513,2]
[368362380,1751143840238,-150.0,0.00029549,2]
[368362381,1751143840248,-150.0,0.000296,2]
[368362382,1751143840258,-7.46602351,0.00029622,2]
[368362383,1751143840385,-150.0,0.00029514,2]
[368362384,1751143840394,-142.53397649,0.00029622,2]
[368362385,1751143840403,-43.52420921,0.0002963,2]
[368362386,1751143840435,-106.47579079,0.0002963,2]
[368362387,1751143840445,-733.94270325,0.00029643,7]
[368362388,1751143840456,-124951.18136886,0.00029643,7]
[368362389,1751143840512,-403282.43220386,0.00029643,7]
[368362390,1751143840523,-831.83209612,0.00029643,7]
[368362391,1751143840546,-65399.21664076,0.00029643,7]
[368362399,1751143840666,-1245.68309994,0.00029643,7]
[368362401,1751143840677,-385.99,0.00029643,7]
[368362432,1751143840970,-2555.1844684,0.00029643,7]
[368362434,1751143840984,-1172.96668734,0.00029643,7]